fUSD/lending_fUSD_20250507
["ID","MTS","AMOUNT","RATE_DAILY","PERIOD"]
[360182472,1746605447122,-450.0,0.00019526,2]
[360182473,1746605447131,-450.0,0.00019526,2]
[360182474,1746605447141,-503.78313955,0.00019526,2]
[360182475,1746605447151,-450.0,0.00019526,2]
[360182476,1746605447161,-463.87297831,0.00019526,2]
[360182477,1746605447170,-450.0,0.00019526,2]
[360182478,1746605447180,-450.0,0.00019526,2]
[360182479,1746605447190,-450.0,0.00019526,2]
[360182480,1746605447199,-450.0,0.00019526,2]
[360182481,1746605447209,-450.0,0.00019526,2]
[360182482,1746605447219,-450.0,0.00019526,2]
[360182483,1746605447228,-450.0,0.00019526,2]
[360182484,1746605447238,-450.0,0.00019526,2]
[360182485,1746605447248,-450.0,0.00019526,2]
[360182486,1746605447257,-450.0,0.00019526,2]
[360182487,1746605447267,-450.0,0.00019526,2]
[360182488,1746605447277,-450.0,0.00019526,2]
[360182489,1746605447287,-450.0,0.00019526,2]
[360182490,1746605447298,-450.0,0.00019526,2]
[360182491,1746605447308,-450.0,0.00019526,2]
[360182492,1746605447317,-450.0,0.00019526,2]
[360182493,1746605447327,-450.0,0.00019526,2]
[360182494,1746605447337,-450.0,0.00019526,2]
[360182495,1746605447346,-450.0,0.00019526,2]
[360182496,1746605447355,-450.0,0.00019526,2]
[360182497,1746605447363,-450.0,0.00019526,2]
[360182498,1746605447372,-450.0,0.00019526,2]
[360182499,1746605447382,-450.0,0.00019526,2]
[360182500,1746605447391,-450.0,0.00019526,2]
[360182501,1746605447401,-450.0,0.00019526,2]
[360182502,1746605447410,-450.0,0.00019526,2]
[360182503,1746605447420,-450.0,0.00019526,2]
[360182504,1746605447430,-757.12,0.00019526,2]
[360182505,1746605447439,-450.0,0.00019526,2]
[360182506,1746605447449,-450.0,0.00019526,2]
[360182507,1746605447460,-450.0,0.00019526,2]
[360182508,1746605447472,-450.0,0.00019526,2]
[360182509,1746605447481,-458.12748594,0.00019526,2]
[360182510,1746605447491,-716.62,0.00019526,2]
[360182511,1746605447501,-450.0,0.00019526,2]
[360182512,1746605447510,-450.0,0.00019526,2]
[360182513,1746605447520,-450.0,0.00019526,2]
[360182514,1746605447529,-721.44,0.00019526,2]
[360182515,1746605447538,-800.2,0.00019526,2]
[360182516,1746605447548,-450.0,0.00019526,2]
[360182517,1746605447557,-450.0,0.00019526,2]
[360182518,1746605447566,-450.0,0.00019526,2]
[360182519,1746605447575,-450.0,0.00019526,2]
[360182520,1746605447590,-786.64,0.00019526,2]
[360182521,1746605447606,-450.0,0.00019526,2]
[360182522,1746605447620,-492.46,0.00019526,2]
[360182523,1746605447630,-493.05,0.00019526,2]
[360182524,1746605447643,-450.0,0.00019526,2]
[360182525,1746605447657,-474.19,0.00019526,2]
[360182526,1746605447671,-450.0,0.00019526,2]
[360182527,1746605447683,-450.0,0.00019526,2]
[360182528,1746605447697,-582.92,0.00019526,2]
[360182529,1746605447710,-450.0,0.00019526,2]
[360182530,1746605447723,-450.0,0.00019526,2]
[360182531,1746605447735,-450.0,0.00019526,2]
[360182532,1746605447746,-450.0,0.00019526,2]
[360182533,1746605447758,-450.0,0.00019526,2]
[360182534,1746605447771,-450.0,0.00019526,2]
[360182535,1746605447783,-450.0,0.00019526,2]
[360182536,1746605447796,-450.0,0.00019526,2]
[360182537,1746605447809,-450.0,0.00019526,2]
[360182538,1746605447821,-450.0,0.00019526,2]
[360182539,1746605447834,-450.0,0.00019526,2]
[360182540,1746605447847,-450.0,0.00019526,2]
[360182541,1746605447860,-450.0,0.00019526,2]
[360182542,1746605447872,-450.0,0.00019526,2]
[360182543,1746605447885,-450.0,0.00019526,2]
[360182544,1746605447896,-450.0,0.00019526,2]
[360182545,1746605447909,-450.0,0.00019526,2]
[360182546,1746605447922,-450.0,0.00019526,2]
[360182547,1746605447934,-450.0,0.00019526,2]
[360182548,1746605447948,-450.0,0.00019526,2]
[360182549,1746605447959,-526.99,0.00019526,2]
[360182550,1746605447971,-450.0,0.00019526,2]
[360182551,1746605447983,-450.0,0.00019526,2]
[360182552,1746605447994,-450.0,0.00019526,2]
[360182553,1746605448004,-526.76636231,0.00019526,2]
[360182554,1746605448016,-57988.13684911,0.00019526,2]
[360182555,1746605448029,-2059.92,0.00019526,2]
[360182556,1746605448044,-29999.99,0.00019526,2]
[360182557,1746605448056,-165.10085009,0.00019573,2]
[360182558,1746605448068,-209.91886527,0.00019573,2]
[360182559,1746605448078,-668.65185757,0.00019584,2]
[360182560,1746605448090,-151.0,0.00019584,2]
[360182561,1746605448102,-450.0,0.00019593,2]
[360182562,1746605448116,-152.07,0.00019593,2]
[360182563,1746605448127,-450.0,0.00019593,2]
[360182564,1746605448138,-450.0,0.00019593,2]
[360182565,1746605448149,-450.0,0.00019593,2]
[360182566,1746605448161,-359.75,0.00019593,2]
[360182567,1746605448172,-225.08365624,0.00019593,2]
[360182568,1746605448185,-264.93909534,0.00019593,2]
[360182569,1746605448196,-178.1982818,0.00019593,2]
[360182570,1746605448209,-169.00199421,0.00019593,2]
[360182571,1746605448221,-500.0,0.00019593,2]
[360182572,1746605448233,-500.0,0.00019593,2]
[360182573,1746605448248,-194.71563709,0.00019593,2]
[360182574,1746605448259,-500.0,0.00019593,2]
[360182575,1746605448271,-500.0,0.00019593,2]
[360182576,1746605448285,-500.0,0.00019593,2]
[360182577,1746605448296,-500.0,0.00019593,2]
[360182578,1746605448310,-500.0,0.00019593,2]
[360182579,1746605448322,-500.0,0.00019593,2]
[360182580,1746605448335,-500.0,0.00019593,2]
[360182581,1746605448348,-404.34230965,0.00019593,2]
[360182582,1746605448360,-500.0,0.00019593,2]
[360182583,1746605448372,-400.0,0.00019593,2]
[360182584,1746605448385,-500.0,0.00019593,2]
[360182585,1746605448398,-500.0,0.00019593,2]
[360182586,1746605448410,-500.0,0.00019593,2]
[360182587,1746605448422,-611.58460446,0.00019594,2]
[360182588,1746605448434,-324642.77872033,0.00019594,2]
[360182589,1746605448446,-666.0,0.00019594,2]
[360182590,1746605448460,-450.0,0.00019594,2]
[360182591,1746605448474,-450.0,0.00019594,2]
[360182592,1746605448486,-450.0,0.00019594,2]
[360182593,1746605448499,-450.0,0.00019594,2]
[360182594,1746605448512,-450.0,0.00019594,2]
[360182595,1746605448523,-450.0,0.00019594,2]
[360182596,1746605448536,-450.0,0.00019594,2]
[360182597,1746605448548,-450.0,0.00019594,2]
[360182598,1746605448560,-450.0,0.00019594,2]
[360182599,1746605448572,-450.0,0.00019594,2]
[360182600,1746605448585,-450.0,0.00019594,2]
[360182601,1746605448597,-450.0,0.00019594,2]
[360182602,1746605448609,-160.12,0.00019594,2]
[360182603,1746605448621,-450.0,0.00019594,2]
[360182604,1746605448633,-450.0,0.00019594,2]
[360182605,1746605448645,-450.0,0.00019594,2]
[360182606,1746605448658,-487.53,0.00019594,2]
[360182607,1746605448669,-487.53,0.00019594,2]
[360182608,1746605448681,-450.0,0.00019594,2]
[360182609,1746605448692,-487.53,0.00019594,2]
[360182610,1746605448704,-450.0,0.00019594,2]
[360182611,1746605448715,-450.0,0.00019594,2]
[360182612,1746605448727,-450.0,0.00019594,2]
[360182613,1746605448739,-450.0,0.00019594,2]
[360182614,1746605448750,-450.0,0.00019594,2]
[360182615,1746605448762,-831.77,0.00019594,2]
[360182616,1746605448773,-831.77,0.00019594,2]
[360182617,1746605448786,-831.77,0.00019594,2]
[360182618,1746605448797,-450.0,0.00019594,2]
[360182619,1746605448809,-450.0,0.00019594,2]
[360182620,1746605448820,-2006.38,0.00019594,2]
[360182621,1746605448832,-597.09,0.00019594,2]
[360182622,1746605448843,-2006.38,0.00019594,2]
[360182623,1746605448855,-2006.38,0.00019594,2]
[360182624,1746605448867,-450.0,0.00019594,2]
[360182625,1746605448879,-450.0,0.00019594,2]
[360182626,1746605448890,-450.0,0.00019594,2]
[360182627,1746605448902,-450.0,0.00019594,2]
[360182628,1746605448915,-450.0,0.00019594,2]
[360182629,1746605448927,-154.604452,0.00019594,2]
[360182630,1746605448939,-450.0,0.00019594,2]
[360182631,1746605448951,-450.0,0.00019594,2]
[360182632,1746605448964,-450.79,0.00019594,2]
[360182633,1746605448976,-501.11,0.00019594,2]
[360182634,1746605448988,-501.11,0.00019594,2]
[360182635,1746605449000,-501.11,0.00019594,2]
[360182636,1746605449012,-1774.1,0.00019594,2]
[360182637,1746605449023,-1774.1,0.00019594,2]
[360182638,1746605449036,-1774.1,0.00019594,2]
[360182639,1746605449047,-151.0,0.00019594,2]
[360182640,1746605449059,-450.0,0.00019594,2]
[360182641,1746605449071,-450.0,0.00019594,2]
[360182642,1746605449083,-151.0,0.00019594,2]
[360182643,1746605449095,-450.0,0.00019595,2]
[360182644,1746605449107,-450.0,0.00019595,2]
[360182645,1746605449119,-450.0,0.00019595,2]
[360182646,1746605449131,-638.32,0.00019595,2]
[360182647,1746605449142,-450.0,0.00019595,2]
[360182648,1746605449154,-450.0,0.00019595,2]
[360182649,1746605449167,-450.0,0.00019595,2]
[360182650,1746605449179,-450.0,0.00019595,2]
[360182651,1746605449190,-503.49942579,0.00019595,2]
[360182652,1746605449201,-450.0,0.00019595,2]
[360182653,1746605449213,-450.0,0.00019595,2]
[360182654,1746605449225,-450.0,0.00019595,2]
[360182655,1746605449237,-450.0,0.00019595,2]
[360182656,1746605449249,-450.0,0.00019595,2]
[360182657,1746605449261,-450.0,0.00019595,2]
[360182658,1746605449273,-450.0,0.00019595,2]
[360182659,1746605449285,-450.0,0.00019595,2]
[360182660,1746605449297,-450.0,0.00019595,2]
[360182661,1746605449310,-250.0,0.00019595,2]
[360182662,1746605449321,-450.0,0.00019595,2]
[360182663,1746605449334,-450.0,0.00019595,2]
[360182664,1746605449346,-450.0,0.00019595,2]
[360182665,1746605449358,-450.0,0.00019595,2]
[360182666,1746605449371,-450.0,0.00019595,2]
[360182667,1746605449383,-450.0,0.00019595,2]
[360182668,1746605449395,-450.0,0.00019595,2]
[360182669,1746605449407,-450.0,0.00019595,2]
[360182670,1746605449420,-450.0,0.00019595,2]
[360182671,1746605449433,-151.0,0.00019595,2]
[360182672,1746605449445,-450.0,0.00019595,2]
[360182673,1746605449458,-252.11917569,0.00019595,2]
[360182674,1746605449474,-450.0,0.00019595,2]
[360182675,1746605449487,-450.0,0.00019595,2]
[360182676,1746605449499,-450.0,0.00019595,2]
[360182677,1746605449509,-450.0,0.00019595,2]
[360182678,1746605449519,-450.0,0.00019595,2]
[360182679,1746605449529,-518.53031085,0.00019595,2]
[360182680,1746605449539,-450.0,0.00019595,2]
[360182681,1746605449549,-450.0,0.00019595,2]
[360182682,1746605449560,-548.11431461,0.00019595,2]
[360182683,1746605449570,-164.933933,0.00019595,2]
[360182684,1746605449580,-575.87215733,0.00019595,2]
[360182685,1746605449591,-450.0,0.00019595,2]
[360182686,1746605449601,-450.0,0.00019595,2]
[360182687,1746605449611,-450.0,0.00019595,2]
[360182688,1746605449620,-151.0,0.00019595,2]
[360182689,1746605449630,-151.0,0.00019595,2]
[360182690,1746605449640,-450.0,0.00019595,2]
[360182691,1746605449649,-460.94,0.00019595,2]
[360182692,1746605449659,-450.0,0.00019595,2]
[360182693,1746605449669,-450.0,0.00019595,2]
[360182694,1746605449679,-450.0,0.00019595,2]
[360182695,1746605449688,-152.120223,0.00019595,2]
[360182696,1746605449698,-494.31,0.00019595,2]
[360182697,1746605449708,-450.0,0.00019595,2]
[360182698,1746605449718,-181.102087,0.00019595,2]
[360182699,1746605450008,-450.0,0.00019595,2]
[360182700,1746605450039,-181.102087,0.00019595,2]
[360182701,1746605450055,-450.0,0.00019595,2]
[360182702,1746605450066,-450.0,0.00019595,2]
[360182703,1746605450075,-450.0,0.00019595,2]
[360182704,1746605450085,-537.14,0.00019595,2]
[360182705,1746605450094,-151.0,0.00019595,2]
[360182706,1746605450103,-151.0,0.00019595,2]
[360182707,1746605450112,-450.0,0.00019595,2]
[360182708,1746605450121,-151.0,0.00019595,2]
[360182709,1746605450131,-271.365483,0.00019595,2]
[360182710,1746605450140,-271.365483,0.00019595,2]
[360182711,1746605450149,-152.773075,0.00019595,2]
[360182712,1746605450159,-450.0,0.00019595,2]
[360182713,1746605450168,-450.0,0.00019595,2]
[360182714,1746605450178,-450.0,0.00019595,2]
[360182715,1746605450187,-450.0,0.00019595,2]
[360182716,1746605450197,-466.31,0.00019595,2]
[360182717,1746605450207,-450.0,0.00019595,2]
[360182718,1746605450216,-151.0,0.00019595,2]
[360182719,1746605450225,-450.0,0.00019595,2]
[360182720,1746605450235,-450.0,0.00019595,2]
[360182721,1746605450244,-450.0,0.00019595,2]
[360182722,1746605450254,-500.0,0.00019595,2]
[360182723,1746605450264,-450.0,0.00019595,2]
[360182724,1746605450274,-785.46,0.00019595,2]
[360182725,1746605450283,-191.74227,0.00019595,2]
[360182726,1746605450292,-151.0,0.00019595,2]
[360182727,1746605450302,-450.0,0.00019595,2]
[360182728,1746605450311,-191.74227,0.00019595,2]
[360182729,1746605450322,-450.0,0.00019595,2]
[360182730,1746605450331,-450.0,0.00019595,2]
[360182731,1746605450340,-450.0,0.00019595,2]
[360182732,1746605450352,-450.0,0.00019595,2]
[360182733,1746605450363,-151.91189058,0.00019595,2]
[360182734,1746605450373,-1041.27,0.00019595,2]
[360182735,1746605450383,-1041.27,0.00019595,2]
[360182736,1746605450392,-1041.27,0.00019595,2]
[360182737,1746605450402,-450.0,0.00019595,2]
[360182738,1746605450411,-1815.72,0.00019595,2]
[360182739,1746605450421,-1815.72,0.00019595,2]
[360182740,1746605450431,-1815.72,0.00019595,2]
[360182741,1746605450440,-450.0,0.00019595,2]
[360182742,1746605450449,-316.76869888,0.00019595,2]
[360182743,1746605450462,-450.0,0.00019595,2]
[360182744,1746605450472,-548.18,0.00019595,2]
[360182745,1746605450481,-450.0,0.00019595,2]
[360182746,1746605450491,-450.0,0.00019595,2]
[360182747,1746605450500,-450.0,0.00019595,2]
[360182748,1746605450510,-450.0,0.00019595,2]
[360182749,1746605450520,-1016.8,0.00019595,2]
[360182750,1746605450530,-450.0,0.00019595,2]
[360182751,1746605450541,-450.0,0.00019595,2]
[360182752,1746605450551,-151.0,0.00019595,2]
[360182753,1746605450560,-450.0,0.00019595,2]
[360182754,1746605450571,-151.0,0.00019595,2]
[360182755,1746605450580,-1329.88,0.00019595,2]
[360182756,1746605450590,-450.0,0.00019595,2]
[360182757,1746605450599,-450.0,0.00019595,2]
[360182758,1746605450609,-187.35188,0.00019595,2]
[360182759,1746605450619,-151.0,0.00019595,2]
[360182760,1746605450629,-156.376908,0.00019595,2]
[360182761,1746605450640,-450.0,0.00019595,2]
[360182762,1746605450650,-151.0,0.00019595,2]
[360182763,1746605450659,-151.0,0.00019595,2]
[360182764,1746605450668,-484.30721444,0.00019595,2]
[360182765,1746605450678,-450.0,0.00019595,2]
[360182766,1746605450687,-1873.77,0.00019595,2]
[360182767,1746605450697,-503.44313905,0.00019595,2]
[360182768,1746605450706,-454.34234826,0.00019595,2]
[360182769,1746605450715,-450.0,0.00019595,2]
[360182770,1746605450724,-695.58,0.00019595,2]
[360182771,1746605450733,-450.0,0.00019595,2]
[360182772,1746605450742,-695.58,0.00019595,2]
[360182773,1746605450751,-450.0,0.00019595,2]
[360182774,1746605450760,-538.5,0.00019595,2]
[360182775,1746605450769,-695.58,0.00019595,2]
[360182776,1746605450778,-450.0,0.00019595,2]
[360182777,1746605450787,-450.0,0.00019595,2]
[360182778,1746605450797,-1932.58,0.00019595,2]
[360182779,1746605450806,-450.0,0.00019595,2]
[360182780,1746605450815,-450.0,0.00019595,2]
[360182781,1746605450824,-450.0,0.00019595,2]
[360182782,1746605450833,-450.0,0.00019595,2]
[360182783,1746605450842,-450.0,0.00019595,2]
[360182784,1746605450850,-615.1,0.00019595,2]
[360182785,1746605450860,-450.0,0.00019595,2]
[360182786,1746605450868,-450.0,0.00019595,2]
[360182787,1746605450877,-450.0,0.00019595,2]
[360182788,1746605450885,-450.0,0.00019595,2]
[360182789,1746605450894,-450.0,0.00019595,2]
[360182790,1746605450903,-537.09,0.00019595,2]
[360182791,1746605450912,-2233.33,0.00019595,2]
[360182792,1746605450921,-682.23,0.00019595,2]
[360182793,1746605450930,-559.69475469,0.00019595,2]
[360182794,1746605450939,-450.0,0.00019595,2]
[360182795,1746605450947,-450.0,0.00019595,2]
[360182796,1746605450956,-450.0,0.00019595,2]
[360182797,1746605450965,-735.15,0.00019595,2]
[360182798,1746605450974,-450.0,0.00019595,2]
[360182799,1746605450984,-450.0,0.00019595,2]
[360182800,1746605450992,-175.91448904,0.00019595,2]
[360182801,1746605451002,-450.0,0.00019595,2]
[360182802,1746605451011,-450.0,0.00019595,2]
[360182803,1746605451020,-450.0,0.00019595,2]
[360182804,1746605451029,-151.0,0.00019595,2]
[360182805,1746605451038,-151.0,0.00019595,2]
[360182806,1746605451047,-450.0,0.00019595,2]
[360182807,1746605451056,-450.0,0.00019595,2]
[360182808,1746605451065,-450.0,0.00019595,2]
[360182809,1746605451075,-2793.12,0.00019595,2]
[360182810,1746605451084,-450.0,0.00019595,2]
[360182811,1746605451093,-450.0,0.00019595,2]
[360182812,1746605451102,-450.0,0.00019595,2]
[360182813,1746605451111,-349.690996,0.00019595,2]
[360182814,1746605451120,-349.690996,0.00019595,2]
[360182815,1746605451130,-471.40994157,0.00019595,2]
[360182816,1746605451139,-450.0,0.00019595,2]
[360182817,1746605451149,-450.0,0.00019595,2]
[360182818,1746605451160,-525.9786761,0.00019595,2]
[360182819,1746605451169,-349.690996,0.00019595,2]
[360182820,1746605451179,-349.690996,0.00019595,2]
[360182821,1746605451189,-33090.81,0.00019595,2]
[360182822,1746605451198,-450.0,0.00019595,2]
[360182823,1746605451207,-76207.96,0.00019595,2]
[360182824,1746605451216,-450.0,0.00019595,2]
[360182825,1746605451226,-450.0,0.00019595,2]
[360182826,1746605451235,-450.0,0.00019595,2]
[360182827,1746605451244,-450.0,0.00019595,2]
[360182828,1746605451254,-450.0,0.00019595,2]
[360182829,1746605451263,-450.0,0.00019595,2]
[360182830,1746605451272,-450.0,0.00019595,2]
[360182831,1746605451282,-450.0,0.00019595,2]
[360182832,1746605451292,-450.0,0.00019595,2]
[360182833,1746605451301,-576.5718414,0.00019595,2]
[360182834,1746605451310,-450.0,0.00019595,2]
[360182835,1746605451320,-450.0,0.00019595,2]
[360182836,1746605451330,-816.07,0.00019595,2]
[360182837,1746605451339,-450.0,0.00019595,2]
[360182838,1746605451349,-450.0,0.00019595,2]
[360182839,1746605451358,-450.0,0.00019595,2]
[360182840,1746605451367,-450.0,0.00019595,2]
[360182841,1746605451376,-450.0,0.00019595,2]
[360182842,1746605451385,-450.0,0.00019595,2]
[360182843,1746605451395,-151.0,0.00019595,2]
[360182844,1746605451404,-450.0,0.00019595,2]
[360182845,1746605451413,-151.0,0.00019595,2]
[360182846,1746605451423,-151.0,0.00019595,2]
[360182847,1746605451432,-2526.99,0.00019595,2]
[360182848,1746605451442,-450.0,0.00019595,2]
[360182849,1746605451451,-151.0,0.00019595,2]
[360182850,1746605451463,-151.0,0.00019595,2]
[360182851,1746605451474,-450.0,0.00019595,2]
[360182852,1746605451483,-528.76617119,0.00019595,2]
[360182853,1746605451493,-919.86,0.00019595,2]
[360182854,1746605451503,-919.86,0.00019595,2]
[360182855,1746605451512,-919.86,0.00019595,2]
[360182856,1746605451523,-450.0,0.00019595,2]
[360182857,1746605451532,-450.0,0.00019595,2]
[360182858,1746605451544,-152.34142248,0.00019595,2]
[360182859,1746605451554,-1219.75,0.00019595,2]
[360182860,1746605451563,-9527.93,0.00019595,2]
[360182861,1746605451572,-450.0,0.00019595,2]
[360182862,1746605451581,-1035.91,0.00019595,2]
[360182863,1746605451590,-450.0,0.00019595,2]
[360182864,1746605451599,-1035.91,0.00019595,2]
[360182865,1746605451608,-1035.91,0.00019595,2]
[360182866,1746605451618,-450.0,0.00019595,2]
[360182867,1746605451627,-388.30674961,0.00019595,2]
[360182868,1746605451636,-450.0,0.00019595,2]
[360182869,1746605451645,-450.0,0.00019595,2]
[360182870,1746605451654,-1017.35,0.00019595,2]
[360182871,1746605451663,-846.53,0.00019595,2]
[360182872,1746605451672,-450.0,0.00019595,2]
[360182873,1746605451681,-542.41357313,0.00019595,2]
[360182874,1746605451690,-545.14,0.00019595,2]
[360182875,1746605451699,-450.0,0.00019595,2]
[360182876,1746605451708,-450.0,0.00019595,2]
[360182877,1746605451717,-450.0,0.00019595,2]
[360182878,1746605451725,-450.0,0.00019595,2]
[360182879,1746605451735,-450.0,0.00019595,2]
[360182880,1746605451744,-450.0,0.00019595,2]
[360182881,1746605451753,-500.0,0.00019595,2]
[360182882,1746605451762,-450.0,0.00019595,2]
[360182883,1746605451771,-450.0,0.00019595,2]
[360182884,1746605451780,-450.0,0.00019595,2]
[360182885,1746605451789,-22130.21,0.00019595,2]
[360182886,1746605451798,-480.0833098,0.00019595,2]
[360182887,1746605451807,-527.46,0.00019595,2]
[360182888,1746605451816,-450.0,0.00019595,2]
[360182889,1746605451825,-500.0,0.00019595,2]
[360182890,1746605451833,-450.0,0.00019595,2]
[360182891,1746605451842,-543.39,0.00019595,2]
[360182892,1746605451852,-543.39,0.00019595,2]
[360182893,1746605451862,-543.39,0.00019595,2]
[360182894,1746605451871,-450.0,0.00019595,2]
[360182895,1746605451880,-1758.33,0.00019595,2]
[360182896,1746605451889,-489.37,0.00019595,2]
[360182897,1746605451898,-489.37,0.00019595,2]
[360182898,1746605451907,-489.37,0.00019595,2]
[360182899,1746605451917,-5132.87047555,0.00019595,2]
[360182900,1746605451938,-638.54659981,0.00019595,2]
[360182901,1746605451949,-1008.7227801,0.00019595,2]
[360182902,1746605451960,-157.38014454,0.00019595,2]
[360182903,1746605451969,-318.37894147,0.00019595,2]
[360182904,1746605452016,-450.0,0.00019525,2]
[360182905,1746605452026,-450.0,0.00019525,2]
[360182906,1746605452036,-131.62105853,0.00019595,2]
[360182907,1746605452045,-450.0,0.00019595,2]
[360182908,1746605452054,-665.23735805,0.00019595,2]
[360182909,1746605452066,-251.22264195,0.00019595,2]
[360182910,1746605452075,-450.0,0.00019595,2]
[360182911,1746605452085,-530.0,0.00019595,2]
[360182912,1746605452094,-151.0,0.00019595,2]
[360182913,1746605452103,-810.88,0.00019595,2]
[360182914,1746605452113,-585.29,0.00019595,2]
[360182915,1746605452122,-221.60735805,0.00019595,2]
[360182916,1746605452133,-228.39264195,0.00019595,2]
[360182917,1746605452142,-406.35929565,0.00019595,2]
[360182918,1746605471640,150.0,0.0003,30]
[360182919,1746605472096,300.0474,0.00019425,2]
[360182920,1746605473184,150.0,0.0003,30]
[360182922,1746605514610,618.24406251,0.00019242,2]
[360182923,1746605525445,1144.06779908,0.00019425,2]
[360182924,1746605530902,1144.06779908,0.00019436,2]
[360182925,1746605535427,1144.06779908,0.00019447,2]
[360182926,1746605539908,250.7917,0.00019425,2]
[360182927,1746605540438,1144.06779908,0.00019459,2]
[360182928,1746605545435,1144.06779908,0.0001947,2]
[360182929,1746605550463,1144.06779908,0.00019481,2]
[360182930,1746605555458,1144.06779908,0.00019492,2]
[360182931,1746605579084,163.57683094,0.00019495,2]
[360182932,1746605586004,150.0,0.0003,30]
[360182933,1746605589987,150.0,0.0003,30]
[360182934,1746605591203,150.0,0.0003,30]
[360182935,1746605593848,2000.0,0.00019462,2]
[360182967,1746605608739,1074.2,0.00019496,2]
[360182968,1746605647925,150.27683177,0.0003,30]
[360182969,1746605649043,150.0,0.0003,30]
[360182970,1746605649935,150.0,0.0003,30]
[360182971,1746605650752,152.08263517,0.0003,30]
[360182972,1746605652478,150.0,0.0003,30]
[360182973,1746605653081,150.71781145,0.0003,30]
[360182974,1746605653722,150.0,0.0003,30]
[360182975,1746605655450,1897.30884694,0.00019261,2]
[360182976,1746605655809,1897.30884694,0.00019225,2]
[360182977,1746605671602,500.0,0.000298,30]
[360182978,1746605739595,500.0,0.00029589,30]
[360182979,1746605739844,500.0,0.00029863,30]
[360182980,1746605753562,172.96595434,0.00019425,2]
[360182981,1746605759425,208.97,0.00018557,2]
[360182983,1746605768567,150.0,0.0003,30]
[360182984,1746605873240,204.14576702,0.00019494,2]
[360182985,1746605889133,153.79359476,0.00019425,2]
[360182986,1746605894439,5482.69591509,0.00019425,2]
[360182987,1746605899435,5482.69591501,0.00019436,2]
[360182988,1746605904455,5482.69591501,0.00019447,2]
[360182989,1746605909436,5482.69591501,0.00019458,2]
[360182990,1746605914448,5482.69591501,0.00019469,2]
[360182991,1746605919446,5482.69591501,0.00019479,2]
[360182992,1746605924459,5482.69591501,0.0001949,2]
[360182993,1746605930249,-166.64,0.00019501,2]
[360182994,1746605978793,172.96595432,0.00019425,2]
[360182995,1746605986444,-5316.05591501,0.00019501,2]
[360182996,1746605986471,-200.0,0.00019506,2]
[360182997,1746605986497,-151.0,0.00019509,2]
[360182998,1746605986524,-200.0,0.00019509,2]
[360182999,1746605986550,-190.92494136,0.00019511,2]
[360183000,1746605986577,-300.0,0.00019511,2]
[360183001,1746605986604,-5482.69591501,0.00019512,2]
[360183002,1746605986629,-1200.0,0.00019513,2]
[360183003,1746605986657,-207.4,0.00019513,2]
[360183004,1746605986682,-300.0,0.00019514,2]